bitfinex-derivatives/quotes_BTCF0:USTF0_20250722
["timestamp","ask_amount","ask_price","bid_price","bid_amount"]
[1753185955236,0.3668885,119360.0,119350.0,0.99923045]
[1753185955441,0.3668885,119360.0,119350.0,1.63836432]
[1753185955645,0.3668885,119360.0,119350.0,1.36003045]
[1753185955945,0.3668885,119360.0,119350.0,1.63836432]
[1753185956134,0.3668885,119360.0,119350.0,1.36003045]
[1753185956337,0.3668885,119360.0,119350.0,1.63836432]
[1753185956538,0.3668885,119360.0,119350.0,1.04624432]
[1753185956834,0.3668885,119360.0,119350.0,1.63828432]
[1753185960836,0.40892463,119370.0,119360.0,0.2760985]
[1753185961043,0.40892463,119370.0,119360.0,0.33850939]
[1753185961242,0.40892463,119370.0,119360.0,0.17104089]
[1753185961543,0.46928463,119370.0,119360.0,0.44937476]
[1753185961743,0.7476185,119370.0,119360.0,0.13264089]
[1753185961929,1.1084185,119370.0,119360.0,0.09055089]
[1753185962434,1.1084185,119370.0,119360.0,0.68251089]
[1753185962629,0.83008463,119370.0,119360.0,0.68251089]
[1753185962842,1.1084185,119370.0,119360.0,0.68251089]
[1753185963030,1.1084185,119370.0,119360.0,0.02401089]
[1753185963340,1.7033785,119370.0,119360.0,0.02401089]
[1753185963843,1.7033785,119370.0,119350.0,0.09802706]
[1753185963844,1.8668885,119360.0,119350.0,0.09802706]
[1753185964143,2.14522237,119360.0,119350.0,0.12217493]
[1753185964345,2.14522237,119360.0,119350.0,0.15927493]
[1753185965239,2.14522237,119360.0,119350.0,0.12217493]
[1753185965542,1.8668885,119360.0,119350.0,0.15927493]
[1753185967835,2.14522237,119360.0,119350.0,0.15927493]
[1753185968041,1.8668885,119360.0,119350.0,0.15927493]
[1753185968241,1.8668885,119360.0,119350.0,0.12217493]
[1753185968242,2.2276885,119360.0,119350.0,0.12217493]
[1753185968444,2.14522237,119360.0,119350.0,0.14465253]
[1753185968742,2.50602237,119360.0,119350.0,0.09273493]
[1753185968937,2.50902237,119360.0,119350.0,0.09273493]
[1753185969344,3.10086237,119360.0,119350.0,0.09273493]
[1753185969539,1.60086237,119360.0,119350.0,0.09273493]
[1753185969739,1.60086237,119360.0,119350.0,0.06858706]
[1753185969935,0.2441065,119340.0,119330.0,1.56272017]
[1753185970135,0.3596165,119340.0,119330.0,1.56272017]
[1753185970647,0.3596165,119340.0,119330.0,1.61687213]
[1753185971738,0.3596165,119340.0,119330.0,1.57499463]
[1753185972237,0.3606165,119340.0,119330.0,1.06339164]
[1753185972539,0.3606165,119340.0,119330.0,1.65519164]
[1753185983655,0.3606165,119340.0,119330.0,1.64027913]
[1753185988645,0.2840065,119340.0,119330.0,1.64027913]
[1753185988853,0.2840065,119340.0,119330.0,1.65027913]
[1753185990159,0.2840065,119340.0,119330.0,1.37194526]
[1753185990458,0.2840065,119340.0,119330.0,1.65027913]
[1753185991445,0.001,119340.0,119330.0,1.65027913]
[1753185991646,0.001,119340.0,119330.0,1.66519164]
[1753185993256,0.001,119340.0,119330.0,1.96159164]
[1753185993554,0.001,119340.0,119330.0,1.91666062]
[1753185994757,0.0002,119350.0,119340.0,0.3087865]
[1753185994950,0.1674825,119350.0,119340.0,1.10089589]
[1753185995145,0.2655047,119360.0,119350.0,0.3087725]
[1753185995352,0.2093447,119360.0,119350.0,1.59344308]
[1753185997252,0.1020178,119420.0,119410.0,0.03652]
[1753185997455,0.387254,119420.0,119410.0,0.25652]
[1753185997652,0.3035583,119410.0,119400.0,0.03652]
[1753185997847,0.94269217,119410.0,119400.0,0.02438912]
[1753185998053,0.3035864,119390.0,119380.0,0.44828]
[1753185998261,0.58492531,119390.0,119380.0,0.42171123]
[1753185998759,0.94572531,119390.0,119380.0,0.02439123]
[1753185999454,0.64088531,119390.0,119380.0,0.02439123]
[1753185999655,0.64088531,119390.0,119380.0,0.09218984]
[1753185999853,0.64088531,119390.0,119380.0,0.02439123]
[1753186000357,1.00168531,119390.0,119380.0,0.02439123]
[1753186000557,0.64088531,119390.0,119380.0,0.02439123]
[1753186000749,0.64088531,119390.0,119380.0,0.02539123]
[1753186000954,1.00168531,119390.0,119380.0,0.02539123]
[1753186001159,0.64088531,119390.0,119380.0,0.02539123]
[1753186001355,1.16921331,119390.0,119380.0,0.02539123]
[1753186001558,1.16921331,119390.0,119380.0,0.02439123]
[1753186002255,0.81041331,119390.0,119380.0,0.02439123]
[1753186002765,0.53207944,119390.0,119380.0,0.02439123]
[1753186002961,1.17121331,119390.0,119380.0,0.02439123]
[1753186003262,0.81041331,119390.0,119380.0,0.02439123]
[1753186004058,1.40149331,119390.0,119380.0,0.02439123]
[1753186004765,0.81041331,119390.0,119380.0,0.02439123]
[1753186004967,1.40145331,119390.0,119380.0,0.02439123]
[1753186005766,1.40145331,119390.0,119380.0,0.04688449]
[1753186006068,1.40145331,119390.0,119380.0,0.02439123]
[1753186006460,1.40145331,119390.0,119380.0,0.04685439]
[1753186007471,1.40141331,119390.0,119380.0,0.02439123]
[1753186007770,1.23388531,119390.0,119380.0,0.02439123]
[1753186008771,1.23384531,119390.0,119380.0,0.02439123]
[1753186009366,0.3512104,119380.0,119370.0,0.42923538]
[1753186009568,0.64831427,119380.0,119370.0,0.4535853]
[1753186009963,0.64831427,119380.0,119370.0,0.4939753]
[1753186010166,0.64831427,119380.0,119370.0,0.4535853]
[1753186010369,0.3699804,119380.0,119370.0,0.4535853]
[1753186010569,0.65031427,119380.0,119370.0,0.4535853]
[1753186010964,1.24119427,119380.0,119370.0,0.4535853]
[1753186011164,1.24115427,119380.0,119370.0,0.4535853]
[1753186012371,1.24111427,119380.0,119370.0,0.4535853]
[1753186012670,0.65031427,119380.0,119370.0,0.4535853]
[1753186012873,1.24111427,119380.0,119370.0,0.4535853]
[1753186014061,0.65031427,119380.0,119370.0,0.4535853]
[1753186014276,1.24107427,119380.0,119370.0,0.4535853]
[1753186014470,1.24107427,119380.0,119370.0,0.4939753]
[1753186015069,0.65031427,119380.0,119370.0,0.4939753]
[1753186015269,1.24103427,119380.0,119370.0,0.4939753]
[1753186017867,0.65031427,119380.0,119370.0,0.4939753]
[1753186018074,1.24095427,119380.0,119370.0,0.4939753]
[1753186018375,1.24095427,119380.0,119370.0,0.4535853]
[1753186018874,0.65031427,119380.0,119370.0,0.4535853]
[1753186019175,1.24095427,119380.0,119370.0,0.4535853]
[1753186020577,1.60175427,119380.0,119370.0,0.02434992]
[1753186021772,1.01111427,119380.0,119370.0,0.02434992]
[1753186021972,0.9625004,119380.0,119370.0,0.49218079]
[1753186022173,0.9625004,119380.0,119370.0,0.44120992]
[1753186022378,1.24083427,119380.0,119370.0,0.44120992]
[1753186022585,1.24083427,119380.0,119370.0,0.46367124]
[1753186023685,1.24083427,119380.0,119370.0,0.44120992]
[1753186024982,1.24083427,119380.0,119370.0,0.50250992]
[1753186024983,1.24079427,119380.0,119370.0,0.50250992]
[1753186025188,0.65031427,119380.0,119370.0,0.50250992]
[1753186025386,1.24075427,119380.0,119370.0,0.50250992]
[1753186026784,1.24075427,119380.0,119370.0,0.50966766]
[1753186028390,0.65031427,119380.0,119370.0,0.50966766]
[1753186028791,1.24063427,119380.0,119370.0,0.50966766]
[1753186029587,0.3719804,119380.0,119370.0,0.50966766]
[1753186029788,1.24059427,119380.0,119370.0,0.50966766]
[1753186030594,1.24059427,119380.0,119370.0,0.49399766]
[1753186030985,1.24059427,119380.0,119370.0,0.45360766]
[1753186031689,0.65031427,119380.0,119370.0,0.45360766]
[1753186031885,1.24055427,119380.0,119370.0,0.45360766]
[1753186033093,1.24055427,119380.0,119370.0,0.50714766]
[1753186033695,1.24055427,119380.0,119370.0,0.52960898]
[1753186035401,0.65031427,119380.0,119370.0,0.52960898]
[1753186035595,1.24039427,119380.0,119370.0,0.52960898]
[1753186035796,0.65031427,119380.0,119370.0,0.52960898]
[1753186036299,1.24039427,119380.0,119370.0,0.52960898]
[1753186036695,0.65031427,119380.0,119370.0,0.52960898]
[1753186037296,0.3719804,119380.0,119370.0,0.52960898]
[1753186037801,0.65031427,119380.0,119370.0,0.52960898]
[1753186039504,0.3719804,119380.0,119370.0,0.52960898]
[1753186039805,0.65031427,119380.0,119370.0,0.58870898]
[1753186041107,0.65031427,119380.0,119370.0,0.52960898]
[1753186042609,0.65031427,119380.0,119370.0,0.53781898]
[1753186043706,0.65031427,119380.0,119370.0,1.12765898]
[1753186045501,0.65031427,119380.0,119370.0,0.53781898]
[1753186045701,0.65031427,119380.0,119370.0,1.12761898]
[1753186047102,0.3719804,119380.0,119370.0,1.12761898]
[1753186047298,0.65031427,119380.0,119370.0,0.53781898]
[1753186047601,0.65031427,119380.0,119370.0,0.10101766]
[1753186047905,1.01111427,119380.0,119370.0,0.10101766]
[1753186049610,0.65031427,119380.0,119370.0,0.03255992]
[1753186050414,1.01111427,119380.0,119370.0,0.03255992]
[1753186050613,0.7327804,119380.0,119370.0,0.03255992]
[1753186050815,1.01111427,119380.0,119370.0,0.03255992]
[1753186054521,0.65031427,119380.0,119370.0,0.03255992]
[1753186055717,1.01111427,119380.0,119370.0,0.03255992]
[1753186061119,1.14989816,119380.0,119370.0,0.03255992]
[1753186061417,0.78909816,119380.0,119370.0,0.03255992]
[1753186061617,0.78909816,119380.0,119370.0,0.39335992]
[1753186061822,1.37825816,119380.0,119370.0,0.3455888]
[1753186062018,1.37825816,119380.0,119370.0,0.7063888]
[1753186062523,1.37825816,119380.0,119370.0,0.49782992]
[1753186066123,1.37825816,119380.0,119370.0,0.52029124]
[1753186066324,1.37825816,119380.0,119370.0,0.46335124]
[1753186066721,1.37825816,119380.0,119370.0,0.44088992]
[1753186070122,1.37825816,119380.0,119370.0,0.46335124]
[1753186070321,1.37825816,119380.0,119370.0,0.44088992]
[1753186070921,1.37825816,119380.0,119370.0,0.07175992]
[1753186071326,0.9611404,119380.0,119370.0,0.07175992]
[1753186071529,1.37825816,119380.0,119370.0,0.07175992]
[1753186071929,1.37825816,119380.0,119370.0,0.03255992]
[1753186074737,0.78909816,119380.0,119370.0,0.03255992]
[1753186074935,1.37777816,119380.0,119370.0,0.09956992]
[1753186075842,0.9606604,119380.0,119370.0,0.46036992]
[1753186076032,1.37777816,119380.0,119370.0,0.46036992]
[1753186079749,0.9606604,119380.0,119370.0,0.46036992]
[1753186079945,1.37777816,119380.0,119370.0,0.46036992]
[1753186080847,1.94713704,119380.0,119370.0,0.09956992]
[1753186081151,1.94713704,119380.0,119370.0,0.07522]
[1753186081646,1.94713704,119380.0,119350.0,0.3777053]
[1753186081647,0.1674684,119360.0,119350.0,0.3777053]
[1753186081847,1.70810847,119360.0,119320.0,0.4495436]
[1753186082146,0.66335826,119330.0,119320.0,0.02453977]
[1753186082340,0.78405826,119330.0,119320.0,0.02453977]
[1753186082538,1.37245826,119330.0,119320.0,0.02453977]
[1753186082742,1.37245826,119330.0,119320.0,0.38533977]
[1753186083352,1.16389938,119330.0,119320.0,0.38533977]
[1753186083553,0.57549938,119330.0,119320.0,0.43357977]
[1753186084447,0.57549938,119330.0,119320.0,0.43757977]
[1753186084948,0.3260805,119330.0,119320.0,1.03592921]
[1753186085148,0.3260805,119330.0,119320.0,1.49290183]
[1753186085149,0.3669405,119330.0,119320.0,1.49290183]
[1753186085654,0.3669405,119330.0,119320.0,1.22394579]
[1753186086643,0.19943,119330.0,119320.0,1.66967098]
[1753186086847,0.15857,119330.0,119320.0,1.67720633]
[1753186087047,0.10259,119330.0,119320.0,1.67720633]
[1753186087243,0.2701005,119330.0,119320.0,1.67720633]
[1753186087855,0.2701005,119330.0,119320.0,1.50968183]
[1753186088043,0.2465304,119340.0,119320.0,2.01548673]
[1753186088356,0.4140268,119340.0,119330.0,0.81944425]
[1753186088654,0.2101664,119340.0,119330.0,0.98695475]
[1753186089057,0.1674964,119340.0,119330.0,1.1620942]
[1753186090951,0.1674964,119340.0,119330.0,0.9945837]
[1753186091157,0.2115864,119340.0,119330.0,0.9945837]
[1753186091752,0.2115864,119340.0,119330.0,0.8279917]
[1753186091952,0.2115864,119340.0,119330.0,0.9955022]
[1753186092256,0.2115864,119340.0,119330.0,0.8279917]
[1753186092452,0.2115864,119340.0,119330.0,0.9955022]
[1753186093552,0.1674964,119340.0,119330.0,0.9955022]
[1753186094061,0.1674964,119340.0,119330.0,1.01976946]
[1753186094062,0.2115864,119340.0,119330.0,1.01976946]
[1753186099664,0.2727164,119340.0,119330.0,1.01976946]
[1753186102858,0.2727164,119340.0,119330.0,0.85225896]
[1753186103566,0.2727164,119340.0,119330.0,1.01976946]
[1753186103865,0.2727164,119340.0,119330.0,0.85225896]
[1753186104066,0.2727164,119340.0,119330.0,1.01976946]
[1753186104962,0.2727164,119340.0,119330.0,0.85225896]
[1753186105767,0.2727164,119340.0,119330.0,1.14865896]
[1753186107268,0.2908764,119340.0,119330.0,1.14865896]
[1753186108059,0.2908764,119340.0,119330.0,1.19369163]
[1753186108568,0.2908764,119340.0,119330.0,1.11866795]
[1753186109662,0.2908764,119340.0,119330.0,0.84046726]
[1753186109868,0.2908764,119340.0,119330.0,0.78282118]
[1753186109869,0.64630709,119340.0,119330.0,0.78282118]
[1753186110163,0.64630709,119340.0,119330.0,1.32233619]
[1753186110463,0.64630709,119340.0,119330.0,1.32233658]
[1753186110662,0.64630709,119340.0,119330.0,1.29240266]
[1753186110863,0.64630709,119340.0,119330.0,0.70492266]
[1753186111068,0.64630709,119340.0,119330.0,1.29236266]
[1753186111662,0.64630709,119340.0,119330.0,0.99596266]
[1753186113673,0.64630709,119340.0,119330.0,0.38606726]
[1753186113873,0.64630709,119340.0,119330.0,0.97342726]
[1753186114076,0.3681064,119340.0,119330.0,0.97342726]
[1753186114377,0.64630709,119340.0,119330.0,0.97342726]
[1753186116865,0.64630709,119340.0,119330.0,0.38606726]
[1753186117169,0.64630709,119340.0,119330.0,0.97334726]
[1753186117481,0.3681064,119340.0,119330.0,0.97334726]
[1753186117777,0.64630709,119340.0,119330.0,0.97334726]
[1753186117975,0.64630709,119340.0,119330.0,1.04323726]
[1753186118672,0.3681064,119340.0,119330.0,1.04323726]
[1753186119876,0.3681064,119340.0,119330.0,1.11567726]
[1753186120276,0.3681064,119340.0,119330.0,1.04323726]
[1753186121080,0.38510816,119340.0,119330.0,1.04323726]
[1753186121677,0.66330885,119340.0,119330.0,1.04323726]
[1753186123681,0.66330885,119340.0,119330.0,1.06569266]
[1753186124377,0.38510816,119340.0,119330.0,1.06569266]
[1753186124577,0.66330885,119340.0,119330.0,1.06569266]
[1753186128988,0.66330885,119340.0,119330.0,0.41767266]
[1753186129284,0.66330885,119340.0,119330.0,0.99540266]
[1753186130287,0.66330885,119340.0,119330.0,0.40852266]
[1753186130486,0.66330885,119340.0,119330.0,0.99540266]
[1753186132181,1.25014885,119340.0,119330.0,0.40852266]
[1753186132389,0.66330885,119340.0,119330.0,0.04772266]
[1753186132687,1.61086885,119340.0,119330.0,0.02526726]
[1753186133887,1.61086885,119340.0,119330.0,0.04772266]
[1753186133888,1.25006885,119340.0,119330.0,0.04772266]
[1753186134989,0.38510816,119340.0,119330.0,0.47469266]
[1753186135189,0.38510816,119340.0,119330.0,0.54692266]
[1753186135989,0.66330885,119340.0,119330.0,0.54692266]
[1753186137082,0.66330885,119340.0,119330.0,1.13364266]
[1753186137785,0.66330885,119340.0,119330.0,1.06141266]
[1753186138389,0.66330885,119340.0,119330.0,1.06889118]
[1753186139090,0.66330885,119340.0,119330.0,0.48217118]
[1753186139290,0.66330885,119340.0,119330.0,1.06877118]
[1753186139781,0.66330885,119340.0,119330.0,0.05520118]
[1753186139981,1.02410885,119340.0,119330.0,0.02526726]
[1753186140388,0.74590816,119340.0,119330.0,0.02526726]
[1753186140589,1.02410885,119340.0,119330.0,0.02526726]
[1753186143894,1.02410885,119340.0,119330.0,0.02530407]
[1753186146288,1.02410885,119340.0,119330.0,0.04782194]
[1753186148995,1.02410885,119340.0,119330.0,0.02325504]
[1753186149298,0.3634904,119330.0,119320.0,0.02993392]
[1753186149491,0.1958745,119320.0,119310.0,0.06761466]
[1753186149691,0.64170519,119320.0,119310.0,0.42841466]
[1753186150097,0.64170519,119320.0,119310.0,0.44351341]
[1753186150489,0.64170519,119320.0,119310.0,0.39848074]
[1753186150894,0.64170519,119320.0,119310.0,0.40148074]
[1753186151490,0.64674998,119320.0,119310.0,0.40148074]
[1753186155098,0.64674998,119320.0,119310.0,0.40348074]
[1753186156398,0.64170519,119320.0,119310.0,0.40348074]
[1753186157098,0.3635045,119320.0,119310.0,0.40348074]
[1753186157299,0.64170519,119320.0,119310.0,0.44110074]
[1753186157602,0.64170519,119320.0,119310.0,0.44932074]
[1753186158391,0.64663722,119320.0,119310.0,0.44932074]
[1753186161201,0.64663722,119320.0,119310.0,0.47339068]
[1753186161699,0.64663722,119320.0,119310.0,0.41684706]
[1753186162003,1.28563791,119320.0,119310.0,0.02906994]
[1753186162200,1.00743722,119320.0,119310.0,0.02906994]
[1753186162502,1.02460371,119320.0,119310.0,0.02907073]
[1753186162701,0.66380371,119320.0,119310.0,0.02907073]
[1753186165504,1.02460371,119320.0,119310.0,0.02907073]
[1753186166097,1.3028044,119320.0,119310.0,0.02907073]
[1753186166703,1.3028044,119320.0,119310.0,0.02607073]
[1753186166900,1.3028044,119320.0,119310.0,0.00012013]
[1753186167107,1.3028044,119320.0,119310.0,3e-08]
[1753186167806,0.07618,119300.0,119280.0,0.40983485]
[1753186168002,0.63619729,119290.0,119280.0,0.39082187]
[1753186168409,0.63619729,119290.0,119280.0,0.45430187]
[1753186169106,0.64177421,119290.0,119280.0,0.45430187]
[1753186169303,0.64177421,119290.0,119280.0,0.45630187]
[1753186169612,0.64177421,119290.0,119280.0,0.42628]
[1753186169802,0.64177421,119290.0,119280.0,0.42728]
[1753186170302,0.64177421,119290.0,119280.0,0.40964]
[1753186170502,0.64177421,119290.0,119280.0,0.3638]
[1753186171009,0.64177421,119290.0,119280.0,0.49747138]
[1753186171204,0.3579966,119290.0,119280.0,0.57816138]
[1753186171404,0.3579966,119290.0,119280.0,0.85636207]
[1753186171804,0.2645966,119290.0,119280.0,0.88638394]
[1753186172001,0.2089466,119290.0,119280.0,0.88638394]
[1753186172808,0.2645966,119290.0,119280.0,0.88638394]
[1753186173711,0.2645966,119290.0,119280.0,0.90139474]
[1753186174708,0.1675666,119290.0,119280.0,1.06897534]
[1753186174905,0.1675666,119290.0,119280.0,1.34717603]
[1753186175111,0.1675666,119290.0,119280.0,1.65457534]
[1753186177314,0.1675666,119290.0,119280.0,1.60954267]
[1753186177813,0.1675666,119290.0,119280.0,1.65453465]
[1753186178513,0.2089466,119290.0,119280.0,1.48695405]
[1753186178714,0.2089466,119290.0,119280.0,1.65453465]
[1753186178911,0.2089466,119290.0,119280.0,1.48695405]
[1753186179414,0.2089466,119290.0,119280.0,1.44196207]
[1753186179614,0.2645966,119290.0,119280.0,1.7833808]
[1753186179815,0.2645966,119290.0,119280.0,1.80717667]
[1753186180216,0.2645966,119290.0,119280.0,1.97475727]
[1753186180616,0.2645966,119290.0,119280.0,1.92973854]
[1753186181215,0.2645966,119290.0,119280.0,1.65153785]
[1753186181413,0.2645966,119290.0,119280.0,1.97476457]
[1753186181718,0.2089466,119290.0,119280.0,1.97476457]
[1753186182319,0.2656166,119290.0,119280.0,1.97476457]
[1753186182511,0.2656166,119290.0,119280.0,1.22158397]
[1753186182717,0.3503166,119290.0,119280.0,1.52878328]
[1753186182913,0.3590766,119290.0,119280.0,1.52878328]
[1753186183917,0.3590766,119290.0,119280.0,1.51776328]
[1753186184217,0.3590766,119290.0,119280.0,1.68534388]
[1753186184615,0.3590766,119290.0,119280.0,1.69631388]
[1753186184816,0.3590766,119290.0,119280.0,1.38911457]
[1753186185117,0.3590766,119290.0,119280.0,1.97439457]
[1753186185611,0.3590766,119290.0,119280.0,1.67799457]
[1753186186419,0.3590766,119290.0,119280.0,1.39979388]
[1753186186620,0.3590766,119290.0,119280.0,1.23221328]
[1753186186821,0.3590766,119290.0,119280.0,1.67799457]
[1753186189123,0.3590766,119290.0,119280.0,1.49932397]
[1753186189322,0.3590766,119290.0,119280.0,0.91416397]
[1753186189523,0.3590766,119290.0,119280.0,0.63596328]
[1753186189726,0.3590766,119290.0,119280.0,1.49932397]
[1753186190424,0.3590766,119290.0,119280.0,1.08174457]
[1753186190624,0.3590766,119290.0,119280.0,1.67741457]
[1753186190922,0.3590766,119290.0,119280.0,1.50983397]
[1753186191122,0.3590766,119290.0,119280.0,0.92471397]
[1753186191324,0.3590766,119290.0,119280.0,1.50983397]
[1753186191723,0.3590766,119290.0,119280.0,1.22108328]
[1753186191922,0.3590766,119290.0,119280.0,1.49928397]
[1753186192121,0.3590766,119290.0,119280.0,0.91416397]
[1753186192322,0.63727729,119290.0,119280.0,1.13369328]
[1753186192520,0.63727729,119290.0,119280.0,1.04970579]
[1753186193428,0.63727729,119290.0,119280.0,1.04971126]
[1753186193725,0.63727729,119290.0,119280.0,1.0196619]
[1753186196631,0.63727729,119290.0,119280.0,1.03911587]
[1753186199921,0.63727729,119290.0,119280.0,0.45407587]
[1753186200118,0.63727729,119290.0,119280.0,1.0839419]
[1753186200319,0.63727729,119290.0,119280.0,0.4991019]
[1753186200528,0.63727729,119290.0,119280.0,1.0839419]
[1753186200731,0.64290436,119290.0,119280.0,1.06895758]
[1753186201125,0.64290436,119290.0,119280.0,0.46722758]
[1753186201321,0.64290436,119290.0,119280.0,0.41963758]
[1753186202132,0.64290436,119290.0,119280.0,0.05883758]
[1753186202524,1.22774436,119290.0,119280.0,0.41963758]
[1753186203034,1.22774436,119290.0,119280.0,0.05883758]
[1753186203422,1.22774436,119290.0,119280.0,0.09751758]
[1753186203627,1.22774436,119290.0,119280.0,0.12331758]
[1753186203829,1.22774436,119290.0,119280.0,0.09327587]
[1753186204029,1.22774436,119290.0,119280.0,0.45407587]
[1753186206437,0.94954367,119290.0,119280.0,0.45407587]
[1753186206734,0.9439166,119290.0,119280.0,0.45407587]
[1753186206937,1.22211729,119290.0,119280.0,0.45407587]
[1753186209239,1.22211729,119290.0,119280.0,0.47660205]
[1753186213940,1.22211729,119290.0,119280.0,0.50664376]
[1753186214533,1.22211729,119290.0,119280.0,0.48411758]
[1753186226449,1.22211729,119290.0,119280.0,0.41963758]
[1753186227547,1.22135729,119290.0,119280.0,0.41963758]
[1753186227846,1.22135729,119290.0,119280.0,0.44221147]
[1753186229048,1.22135729,119290.0,119280.0,0.41963758]
[1753186231349,0.63727729,119290.0,119280.0,0.41963758]
[1753186231549,1.22127729,119290.0,119280.0,0.41963758]
[1753186232949,1.22127729,119290.0,119280.0,0.42790758]
[1753186233150,1.22127729,119290.0,119280.0,0.42044235]
[1753186234151,1.49947798,119290.0,119280.0,0.42044235]
[1753186234348,1.49947798,119290.0,119280.0,0.01000037]
[1753186234652,1.58207729,119290.0,119280.0,0.01000037]
[1753186235149,1.58207729,119290.0,119280.0,7e-08]
[1753186235750,1.58207729,119290.0,119280.0,0.00100007]
[1753186235950,0.63727729,119290.0,119280.0,0.00100007]
[1753186236149,1.22111729,119290.0,119280.0,0.00100007]
[1753186236747,0.1675668,119280.0,119270.0,0.38337648]
[1753186237051,0.91204818,119280.0,119270.0,0.3608]
[1753186237245,0.3556468,119280.0,119270.0,0.3608]
[1753186237445,0.63384749,119280.0,119270.0,0.3608]
[1753186238150,0.3556608,119270.0,119260.0,0.46393578]
[1753186238341,1.21766149,119270.0,119260.0,0.46393578]
[1753186239352,1.21766149,119270.0,119260.0,0.46493578]
[1753186240149,0.9393808,119270.0,119260.0,0.83873818]
[1753186240349,0.3104808,119270.0,119260.0,0.8245617]
[1753186240649,0.2082908,119270.0,119260.0,1.4082817]
[1753186240953,0.2082908,119270.0,119260.0,1.5778766]
[1753186241347,0.1675808,119270.0,119260.0,1.6078766]
[1753186241542,0.3917974,119280.0,119270.0,0.2250308]
[1753186241754,0.3915974,119280.0,119270.0,0.80046335]
[1753186242148,0.2521587,119280.0,119270.0,0.96804415]
[1753186242343,0.167576,119280.0,119270.0,1.48069752]
[1753186243855,0.167576,119280.0,119270.0,1.43667149]
[1753186244459,0.167576,119280.0,119270.0,1.48172057]
[1753186244758,0.167576,119280.0,119270.0,1.31413977]
[1753186247056,0.167576,119280.0,119270.0,1.33775077]
[1753186247659,0.167576,119280.0,119270.0,1.63415077]
[1753186248758,0.167576,119280.0,119270.0,1.46647077]
[1753186249863,0.167576,119280.0,119270.0,1.63405157]
[1753186250556,0.167576,119280.0,119270.0,1.46647077]
[1753186250754,0.167576,119280.0,119270.0,1.63404473]
[1753186252965,0.3498831,119290.0,119280.0,0.2965968]
[1753186253166,0.2940331,119290.0,119280.0,1.55252165]
[1753186253663,0.3496831,119290.0,119280.0,1.13676367]
[1753186253869,0.3496831,119290.0,119280.0,1.55252165]
[1753186254257,0.3496831,119290.0,119280.0,1.38495485]
[1753186254462,0.4388431,119290.0,119280.0,1.38495485]
[1753186255373,0.4388431,119290.0,119280.0,1.55252165]
[1753186255673,0.4398431,119290.0,119280.0,1.27432096]
[1753186255873,0.4398431,119290.0,119280.0,1.55252165]
[1753186256574,0.4398431,119290.0,119280.0,1.84892165]
[1753186257275,0.4398431,119290.0,119280.0,1.84891177]
[1753186257476,0.4398431,119290.0,119280.0,1.87141492]
[1753186258873,0.4398431,119290.0,119280.0,1.87141631]
[1753186263775,0.4398431,119290.0,119280.0,1.87892128]
[1753186263975,0.4398431,119290.0,119280.0,1.60072059]
[1753186264275,0.4398431,119290.0,119280.0,1.87892128]
[1753186266176,0.4398431,119290.0,119280.0,0.84204379]
[1753186266381,0.4398431,119290.0,119280.0,1.87077118]
[1753186267184,0.4398431,119290.0,119280.0,1.87856118]
[1753186268281,0.4398431,119290.0,119280.0,1.71099448]
[1753186268481,0.4398431,119290.0,119280.0,1.87856118]
[1753186270586,0.4398431,119290.0,119280.0,1.89360075]
[1753186270782,0.4398431,119290.0,119280.0,1.87861128]
[1753186271088,0.4398431,119290.0,119280.0,1.9236603]
[1753186271480,0.09934,119290.0,119280.0,1.89360075]
[1753186271685,0.04369,119290.0,119280.0,1.89360075]
[1753186271882,0.1685527,119290.0,119280.0,1.89360075]
[1753186272585,0.1685527,119290.0,119280.0,1.84855167]
[1753186272982,0.1965782,119300.0,119290.0,0.31451603]
[1753186272983,0.2082407,119300.0,119290.0,0.31451603]
[1753186273188,0.1675507,119300.0,119290.0,1.32861305]
[1753186273590,0.1675507,119300.0,119290.0,1.283511]
[1753186274087,0.1675507,119300.0,119290.0,1.32857073]
[1753186274288,0.2080407,119300.0,119290.0,1.03217073]
[1753186274688,0.2618107,119300.0,119290.0,1.03217073]
[1753186274988,0.2618107,119300.0,119290.0,0.75397004]
[1753186275184,0.2618107,119300.0,119290.0,1.03317073]
[1753186275389,0.2787607,119300.0,119290.0,1.61585073]
[1753186276390,0.2787607,119300.0,119290.0,1.03317073]
[1753186276590,0.2787607,119300.0,119290.0,1.62190557]
[1753186276888,0.2787607,119300.0,119290.0,1.61190557]
[1753186277088,0.2787607,119300.0,119290.0,1.92186557]
[1753186277289,0.2787607,119300.0,119290.0,1.93186557]
[1753186277488,0.2787607,119300.0,119290.0,1.34922557]
[1753186277690,0.2787607,119300.0,119290.0,1.93286557]
[1753186279190,0.3055007,119300.0,119290.0,1.93286557]
[1753186280289,0.3055007,119300.0,119290.0,2.22926557]
[1753186280892,0.3055007,119300.0,119290.0,1.64662557]
[1753186281189,0.62860139,119300.0,119290.0,1.19550542]
[1753186281392,0.62860139,119300.0,119290.0,1.97802542]
[1753186281581,0.62860139,119300.0,119290.0,1.81047272]
[1753186281784,0.62860139,119300.0,119290.0,1.93296569]
[1753186281981,0.62860139,119300.0,119290.0,0.83315272]
[1753186282184,0.62860139,119300.0,119290.0,1.37061299]
[1753186282587,0.62860139,119300.0,119290.0,1.53816569]
[1753186283295,0.62860139,119300.0,119290.0,1.38777299]
[1753186283497,0.62860139,119300.0,119290.0,1.55532569]
[1753186283792,0.3504007,119300.0,119290.0,1.55532569]
[1753186284396,0.3504007,119300.0,119290.0,1.60252569]
[1753186284598,0.3504007,119300.0,119290.0,0.85245299]
[1753186284797,0.3504007,119300.0,119290.0,1.43489299]
[1753186285498,0.3504007,119300.0,119290.0,1.38769299]
[1753186285698,0.62860139,119300.0,119290.0,1.38769299]
[1753186286099,0.62860139,119300.0,119290.0,1.09129299]
[1753186287702,0.3504007,119300.0,119290.0,1.13849299]
[1753186287902,0.3504007,119300.0,119290.0,1.58424638]
[1753186288891,0.3504007,119300.0,119290.0,1.60584073]
[1753186289095,0.2618107,119300.0,119290.0,1.60484073]
[1753186289302,0.2080407,119300.0,119290.0,1.60484073]
[1753186289903,0.2080407,119300.0,119290.0,1.98484073]
[1753186290598,0.1675507,119300.0,119290.0,1.98484073]
[1753186290804,0.1501486,119300.0,119290.0,2.40689883]
[1753186291304,0.1501486,119300.0,119290.0,2.3608391]
[1753186292203,0.1501486,119300.0,119290.0,2.40686393]
[1753186293005,0.1501486,119300.0,119290.0,2.40786393]
[1753186293706,0.1501486,119300.0,119290.0,2.40786777]
[1753186295705,0.1816486,119300.0,119290.0,2.40786777]
[1753186297308,0.1816486,119300.0,119290.0,2.3628391]
[1753186298013,0.1816486,119300.0,119290.0,2.40786777]
[1753186298707,0.0315,119300.0,119290.0,2.40786777]
[1753186299513,0.0315,119300.0,119290.0,1.82542777]
[1753186299714,0.0315,119300.0,119290.0,2.40754777]
[1753186303313,0.0315,119300.0,119290.0,1.82542777]
[1753186303502,0.0315,119300.0,119290.0,2.40742777]
[1753186303703,0.0315,119300.0,119290.0,2.3623991]
[1753186305403,0.1990386,119300.0,119290.0,2.3623991]
[1753186305809,0.1990386,119300.0,119290.0,2.08419841]
[1753186306008,0.2403486,119300.0,119290.0,2.3623991]